Workbook

Sheet Bid Template REVISED
B1: CONSTRUCTION BID FORM | D1: BKA Proj # 225088
B3: Dave's Hot Chicken - BGR Hospitality | D3: Bid Due Date: Sept 10, 2025, 5pm
B4: 2055 Washington St, Hanover, MA
D5: New England Construction
D6: CONSTRUCTION | E6: COST ANALYSIS
B7: DIVISION | D7: BID | E7: COST / GSF
B9: EXECUTIVE SUMMARY
C10: DIVISION 01 - GENERAL CONDITIONS | D10: =D72 -> 86319.4 | E10: 0
C11: DIVISION 02 - EXISTING CONDITIONS | D11: =D78 -> 10600 | E11: 0
C12: DIVISION 03 - CONCRETE | D12: =D91 -> 28011 | E12: 0
C13: DIVISION 04 - MASONRY | D13: 0 | E13: 0
C14: DIVISION 05 - METALS | D14: 0 | E14: 0
C15: DIVISION 06 - WOODS, PLASTICS & COMPOSITES | D15: =D114 -> 3470 | E15: 0
C16: DIVISION 07 - THERMAL MOISTURE PROTECTION | D16: =D129 -> 15280 | E16: 0
C17: DIVISION 08 - OPENINGS | D17: =D140 -> 12578 | E17: 0
C18: DIVISION 09 - FINISHES | D18: =D156 -> 88496 | E18: 0
C19: DIVISION 10 - SPECIALTIES | D19: =D171 -> 4673 | E19: 0
C20: DIVISION 11 - EQUIPMENT | D20: =D181 -> 12250 | E20: 0
C21: DIVISION 12 - FURNISHINGS | D21: =D187 -> 1360 | E21: 0
C22: DIVISION 13 - SPECIAL CONSTRUCTION | D22: 0 | E22: 0
C23: DIVISION 14 - CONVEYING EQUIPMENT | D23: 0 | E23: 0
C24: DIVISION 21 - FIRE SUPPRESSION | D24: =D204 -> 7400 | E24: 0
C25: DIVISION 22 - PLUMBING | D25: =D221 -> 63000 | E25: 0
C26: DIVISION 23 - HVAC | D26: =D229 -> 71700 | E26: 0
C27: DIVISION 26 - ELECTRICAL | D27: =D240 -> 85350 | E27: 0
C28: DIVISION 27 - COMMUNICATIONS | D28: 0 | E28: 0
C29: DIVISION 28 - ELECTRONIC SAFETY & SECURITY | D29: =D251 -> 15436 | E29: 0
C30: DIVISION 31 - EARTHWORK | D30: 0 | E30: 0
C31: DIVISION 32 - EXTERIOR IMPROVEMENTS | D31: 0 | E31: 0
C32: DIVISION 31 - UTILITIES | D32: 0 | E32: 0
B34: CONSTRUCTION BUDGET SUB-TOTAL | D34: =SUM(D10:D32) -> 505923.4 | E34: =SUM(E10:E32) -> 0
B36: CONSTRUCTION CONTINGENCY (20%) | E36: =SUM(E12:E34)*20% -> 0
B38: CONSTRUCTION REPORT TOTAL | D38: =SUM(D34:D36) -> 505923.4 | E38: =SUM(E34:E36) -> 0
B41: DIVISION 0 - FEES
C42: Contractor Fee + Overhead | D42: 30846 | E42: 0
C43: Insurance | D43: 8174 | E43: 0
C44: Sub guard Insurance | D44: 0 | E44: =D44/#REF! -> 
C45: Tax
B47: =B41&" TOTAL" -> DIVISION 0 - FEES TOTAL | D47: =SUM(D42:D46) -> 39020 | E47: =SUM(E42:E43) -> 0
B50: =$C$10 -> DIVISION 01 - GENERAL CONDITIONS
C51: General Conditions - Lump Sum | D51: =[2]Sheet1!$F$19+[2]Sheet1!$F$38 -> 86319.4 | E51: 0
C52: Project Manager | D52: 0 | E52: 0
C53: Assistant Project Manager (if applicable) | D53: 0 | E53: 0
C54: Site Management - Superintendent | D54: 0 | E54: 0
C55: Site Management - Asst. Superintendent (if applicable) | D55: 0 | E55: 0
C56: Site Labor | D56: 0 | E56: 0
C57: Temporary Storage | D57: 0 | E57: 0
C58: Dumpsters | D58: 0 | E58: 0
C59: Scaffolding | D59: 0 | E59: 0
C60: Temporary Utilities | D60: 0 | E60: 0
C61: Construction Facilities - Site Office | D61: 0 | E61: 0
C62: Site Maintenance and Protection | D62: 0 | E62: 0
C63: Mileage | D63: 0 | E63: 0
C64: Special Inspections | D64: 0 | E64: 0
C65: Permitting | D65: 0 | E65: 0
C66: Safety Signage | D66: 0 | E66: 0
C67: Misc. Punchlist Close Out Items | D67: 0 | E67: 0
C68: Site Safety | D68: 0 | E68: 0
C69: Final Cleaning | D69: 0 | E69: 0
C70: Submittals | D70: 0 | E70: 0
B72: =B50&" TOTAL" -> DIVISION 01 - GENERAL CONDITIONS TOTAL | D72: =SUM(D51:D71) -> 86319.4 | E72: =SUM(E51:E71) -> 0
B75: DIVISION 02 - EXISTING CONDITIONS
C76: Selective demolition | D76: =[2]Sheet1!$F$55 -> 10600 | E76: =D76/34641 -> 0.3059957853
B78: DIVISION 02 - EXISTING CONDITIONS TOTAL | D78: =SUM(D76:D77) -> 10600 | E78: =SUM(E76:E77) -> 0.3059957853
B81: =$C$12 -> DIVISION 03 - CONCRETE
C82: Earthwork Grading / Excavation | D82: 0 | E82: 0
C83: Cast in place Concrete, BUILDING Formwork | D83: 0 | E83: 0
C84: Cast in Place Concrete, BUILDING flatwork | D84: 0 | E84: 0
C85: Cast in Place Concrete, SITE Formwork | D85: 0 | E85: 0
C86: Cast in place Concrete, SITE Flatwork | D86: 0 | E86: 0
C87: Trenching & Patching | D87: =[2]Sheet1!$F$58 -> 12130 | E87: 0
C88: Housekeeping Pads | D88: =[2]Sheet1!$F$64 -> 4226 | E88: 0
C89: Polished Concrete | D89: =[2]Sheet1!$F$69 -> 11655 | E89: 0
B91: =B81&" TOTAL" -> DIVISION 03 - CONCRETE TOTAL | D91: =SUM(D82:D90) -> 28011 | E91: =SUM(E82:E90) -> 0
B94: DIVISION 04 - MASONRY
C95: Concrete Unit Masonry | D95: 0 | E95: 0
B97: =B94&" TOTAL" -> DIVISION 04 - MASONRY TOTAL | D97: =SUM(D95:D96) -> 0 | E97: =SUM(E95:E96) -> 0
B100: =$C$14 -> DIVISION 05 - METALS
C101: Structural Steel, Joists and Decl | D101: 0 | E101: 0
C102: Structural metal stud framing | D102: 0 | E102: 0
C103: Misc. Metals BUILDING | D103: 0 | E103: 0
C104: Misc. Metals SITE | D104: 0 | E104: 0
C105: Metal railings | D105: 0 | E105: 0
B107: =B100&" TOTAL" -> DIVISION 05 - METALS TOTAL | D107: =SUM(D101:D106) -> 0 | E107: =SUM(E101:E105) -> 0
B110: =$C$15 -> DIVISION 06 - WOODS, PLASTICS & COMPOSITES
C111: Rough Carpentry | D111: =SUM([1]Sheet1!$F$88:$F$90) -> 750 | E111: 0
C112: Finish Carpentry | D112: =SUM([1]Sheet1!$F$96:$F$97) -> 2720 | E112: 0
B114: =B110&" TOTAL" -> DIVISION 06 - WOODS, PLASTICS & COMPOSITES TOTAL | D114: =SUM(D111:D113) -> 3470 | E114: =SUM(E111:E113) -> 0
B117: =$C$16 -> DIVISION 07 - THERMAL MOISTURE PROTECTION
C118: Damproofing and Waterproofing | D118: 0 | E118: 0
C119: Building Insulation | D119: 0 | E119: 0
C120: Spray foam insulation | D120: 0 | E120: 0
C121: Air Barriers | D121: 0 | E121: 0
C122: Roofing and Flashing | D122: =[1]Sheet1!$F$104 -> 15280 | E122: 0
C123: Firestopping/Fireproofing | D123: 0 | E123: 0
C124: Caulking & Joint Sealers | D124: 0 | E124: 0
C125: EIFS System | D125: 0 | E125: 0
C126: Composite Metal Panels | D126: 0 | E126: 0
C127: Vapor Barrier | D127: 0 | E127: 0
B129: =B117&" TOTAL" -> DIVISION 07 - THERMAL MOISTURE PROTECTION TOTAL | D129: =SUM(D118:D128) -> 15280 | E129: =SUM(E118:E128) -> 0
B132: =$C$17 -> DIVISION 08 - OPENINGS
C133: Metal Doors and Frames | D133: =[1]Sheet1!$F$112 -> 12578 | E133: 0
C134: Hardware | D134: 0 | E134: 0
C135: Access Doors | D135: 0 | E135: 0
C136: Overhead Doors | D136: 0 | E136: 0
C137: Glass and Glazing | D137: 0 | E137: 0
C138: Security and Films | D138: 0 | E138: 0
B140: =B132&" TOTAL" -> DIVISION 08 - OPENINGS TOTAL | D140: =SUM(D133:D139) -> 12578 | E140: =SUM(E133:E139) -> 0
B143: =$C$18 -> DIVISION 09 - FINISHES
C144: Gypsum Wall Board | D144: =[1]Sheet1!$F$115 -> 19522 | E144: 0
C145: Non-Strutural Metal Framing | D145: 0 | E145: 0
C146: Tiling | D146: =[1]Sheet1!$F$136 -> 9600 | E146: 0
C147: Acoustical ceilings (clean room panels & grid) | D147: 0 | E147: 0
C148: Acoustical ceilings (panel & grid) | D148: =[1]Sheet1!$F$145 -> 3300 | E148: 0
C149: FRP | D149: =[1]Sheet1!$F$153 -> 14471 | E149: 0
C150: Resilient Flooring & Base | D150: =[1]Sheet1!$F$147 -> 3000 | E150: 0
C151: Urethane Concrete Flooring with integral 4" epoxy base | D151: =[1]Sheet1!$F$149 -> 31148 | E151: 0
C152: Concrete Sealer | D152: 0 | E152: 0
C153: Wall Finishes | D153: 0 | E153: 0
C154: Paints and Coatings | D154: =[1]Sheet1!$F$160+[1]Sheet1!$F$171 -> 7455 | E154: 0
B156: =B143&" TOTAL" -> DIVISION 09 - FINISHES TOTAL | D156: =SUM(D144:D155) -> 88496 | E156: =SUM(E144:E155) -> 0
B159: =$C$19 -> DIVISION 10 - SPECIALTIES
C160: Exterior Signage | D160: 0 | E160: 0
C161: Interior Signage | D161: =[1]Sheet1!$F$178 -> 750 | E161: 0
C162: Telephone Speacialties | D162: 0 | E162: 0
C163: Partitions | D163: 0 | E163: 0
C164: Wall and Door Protection | D164: =SUM([1]Sheet1!$F$184:$F$186) -> 2330 | E164: 0
C165: Toilet Room Accessories | D165: =[1]Sheet1!$F$191 -> 906 | E165: 0
C166: Safety Specialties - Fire Extinguishers & Cabinets | D166: =[1]Sheet1!$F$187 -> 687 | E166: 0
C167: Lockers | D167: 0 | E167: 0
C168: Interior Bollards | D168: 0 | E168: 0
C169: Storage Shelving | D169: 0 | E169: 0
B171: =B159&" TOTAL" -> DIVISION 10 - SPECIALTIES TOTAL | D171: =SUM(D160:D169) -> 4673 | E171: =SUM(E160:E170) -> 0
B174: DIVISIONS 11 - EQUIPMENT
C175: Walk in freezer (Allowance) | D175: 0 | E175: 0
C176: Drying Racks | D176: 0 | E176: 0
C177: Pip Racks | D177: 0 | E177: 0
C178: Air Shower | D178: 0 | E178: 0
C179: Food Service Equipment Install | D179: =[1]Sheet1!$F$202 -> 12250 | E179: 0
B181: DIVISIONS 11 - EQUIPMENT TOTAL | D181: =SUM(D175:D180) -> 12250 | E181: =SUM(E175:E180) -> 0
B184: DIVISION 12 - FURNISHINGS
C185: Furniture Install | D185: =[1]Sheet1!$F$208 -> 1360 | E185: 0
B187: DIVISIONS 12 - FURNISHINGS TOTAL | D187: =SUM(D185:D186) -> 1360 | E187: =SUM(E181:E186) -> 0
B189: DIVISION 13 - SPECIAL CONSTRUCTION
C190: Vault | D190: 0 | E190: 0
B192: =B189&" TOTAL" -> DIVISION 13 - SPECIAL CONSTRUCTION TOTAL | D192: =SUM(D190:D191) -> 0 | E192: =SUM(E190:E191) -> 0
B195: DIVISION 14 - CONVEYING SYSTEMS
C196: Elevator | D196: 0 | E196: 0
B198: =B195&" TOTAL" -> DIVISION 14 - CONVEYING SYSTEMS TOTAL | D198: =SUM(D196:D197) -> 0 | E198: =SUM(E196:E197) -> 0
B201: DIVISION 21 - FIRE SUPPRESSION
C202: Water Based Fire Suppression System | D202: =[1]Sheet1!$F$215 -> 7400 | E202: 0
B204: =B201&" TOTAL" -> DIVISION 21 - FIRE SUPPRESSION TOTAL | D204: =SUM(D202:D203) -> 7400 | E204: =SUM(E202:E203) -> 0
B208: =$C$25 -> DIVISION 22 - PLUMBING
C209: Storm Drainage System | D209: 0 | E209: 0
C210: Plant Water Drainage System | D210: 0 | E210: 0
C211: Domestic Water Piping | D211: =[1]Sheet1!$F$218 -> 63000 | E211: 0
C212: Sanitary Waste & Vent Piping | D212: 0 | E212: 0
C213: Plumbing Fixtures | D213: 0 | E213: 0
C214: Water Heaters | D214: 0 | E214: 0
C215: New Water Service | D215: 0 | E215: 0
C216: Plumbing installation | D216: 0 | E216: 0
C217: Fertigation Piping System | D217: 0 | E217: 0
C218: Condensate Piping | D218: 0 | E218: 0
C219: Site Utilities | D219: 0 | E219: 0
B221: =B208&" TOTAL" -> DIVISION 22 - PLUMBING TOTAL | D221: =SUM(D209:D220) -> 63000 | E221: =SUM(E209:E220) -> 0
B224: =$C$26 -> DIVISION 23 - HVAC
C225: HVAC | D225: =[1]Sheet1!$F$257 -> 71700 | E225: 0
C226: Automatic Temperature Controls | D226: 0 | E226: 0
C227: Testing and Balancing | D227: 0 | E227: 0
B229: =B224&" TOTAL" -> DIVISION 23 - HVAC TOTAL | D229: =SUM(D225:D228) -> 71700 | E229: =SUM(E225:E228) -> 0
B232: DIVISION 26 - ELECTRICAL
C233: Electrical Systems | D233: 85350 | E233: 0
C234: Lighitng and Devices | D234: 0 | E234: 0
C235: Electrical Miscellaneous | D235: 0 | E235: 0
C236: Voice Communications | D236: 0 | E236: 0
C237: Generator Supply and Install | D237: 0 | E237: 0
C238: Site lighting | D238: 0 | E238: 0
B240: =B232& "TOTAL" -> DIVISION 26 - ELECTRICAL TOTAL | D240: =SUM(D233:D239) -> 85350 | E240: =SUM(E233:E239) -> 0
B243: DIVISION 27 - COMMUNICATIONS (NOT USED)
B246: =$C$29 -> DIVISION 28 - ELECTRONIC SAFETY & SECURITY
C247: Access Controls & Security Systems | D247: 0 | E247: 0
C248: Fire Detection and Alarm System | D248: =[1]Sheet1!$F$315 -> 15436 | E248: 0
C249: BDA (bi-directional amplifier) allowance | D249: 0 | E249: 0
B251: =B246&" TOTAL" -> DIVISION 28 - ELECTRONIC SAFETY & SECURITY TOTAL | D251: =SUM(D247:D250) -> 15436 | E251: =SUM(E247:E250) -> 0
B254: DIVISION 31 - EARTHWORK
C255: Erosion Control | D255: 0 | E255: 0
C256: Site Prep | D256: 0 | E256: 0
C257: Site Grading | D257: 0 | E257: 0
C258: Trucking & Disposal | D258: 0 | E258: 0
C259: Building Excavations | D259: 0 | E259: 0
B261: DIVISION 31 - EARTHWORK TOTAL | D261: =SUM(D255:D260) -> 0 | E261: =SUM(E255:E260) -> 0
B264: DIVISION 32 - EXTERIOR IMPROVEMENTS
C265: Asphalt Parking lots | D265: 0 | E265: 0
C266: Curbs | D266: 0 | E266: 0
C267: Sidewalks | D267: 0 | E267: 0
C268: Landscaping | D268: 0 | E268: 0
B270: =B264&" TOTAL" -> DIVISION 32 - EXTERIOR IMPROVEMENTS TOTAL | D270: =SUM(D265:D269) -> 0 | E270: =SUM(E265:E269) -> 0
B272: DIVISON 33 - UTILITIES
C273: Water Utilites | D273: 0 | E273: 0
C274: Sewer utilites | D274: 0 | E274: 0
... 20 more rows
